[Event "Late-Titled-Tuesday-Blitz-January-30-2024"]
[Site "Chess.com"]
[Date "2024.01.30"]
[Round "7"]
[White "Akhayan"]
[Black "HajiyevKanan"]
[Result "0-1"]
[WhiteElo "2351"]
[BlackElo "2562"]
[TimeControl "180+1"]
[EndTime "15:16:48 PST"]
[Termination "HajiyevKanan won by resignation"]

1. e4 {[%clk 0:03:00.9]} 1... c6 {[%clk 0:02:59.5]} 2. Nf3 {[%clk 0:03:01.6]}
2... d5 {[%clk 0:03:00.4]} 3. e5 {[%clk 0:03:01.5]} 3... c5 {[%clk 0:03:00.5]}
4. d4 {[%clk 0:03:00.3]} 4... Nc6 {[%clk 0:03:01]} 5. c4 {[%clk 0:02:53]} 5...
Bg4 {[%clk 0:02:59]} 6. cxd5 {[%clk 0:02:48.4]} 6... Qxd5 {[%clk 0:02:43.9]} 7.
Nc3 {[%clk 0:02:48.4]} 7... Bxf3 {[%clk 0:02:40.9]} 8. gxf3 {[%clk 0:02:22.4]}
8... Qxd4 {[%clk 0:02:36.3]} 9. Be3 {[%clk 0:02:11.6]} 9... Qxe5 {[%clk
0:02:34.8]} 10. f4 {[%clk 0:02:02.6]} 10... Qc7 {[%clk 0:02:27.8]} 11. Nd5
{[%clk 0:01:36.7]} 11... Qa5+ {[%clk 0:02:26.2]} 12. Bd2 {[%clk 0:01:21]} 12...
Qd8 {[%clk 0:02:25.9]} 13. Bg2 {[%clk 0:01:09.3]} 13... e6 {[%clk 0:02:25.9]}
14. Ne3 {[%clk 0:01:06.6]} 14... Nf6 {[%clk 0:02:25.8]} 15. O-O {[%clk
0:01:04.2]} 15... Bd6 {[%clk 0:02:24]} 16. Nc4 {[%clk 0:01:02]} 16... O-O {[%clk
0:02:15]} 17. Nxd6 {[%clk 0:00:54.5]} 17... Qxd6 {[%clk 0:02:14.6]} 18. Be3
{[%clk 0:00:54.9]} 18... Nd5 {[%clk 0:02:06.1]} 19. Rc1 {[%clk 0:00:48.9]} 19...
b6 {[%clk 0:02:02.8]} 20. f5 {[%clk 0:00:38.1]} 20... Rad8 {[%clk 0:01:51.5]}
21. fxe6 {[%clk 0:00:38.1]} 21... fxe6 {[%clk 0:01:37.5]} 22. Qg4 {[%clk
0:00:37.9]} 22... Ne5 {[%clk 0:01:27.9]} 23. Qe4 {[%clk 0:00:35.5]} 23... Nf6
{[%clk 0:01:11.8]} 24. Qh4 {[%clk 0:00:33.5]} 24... Ng6 {[%clk 0:01:01.2]} 25.
Qc4 {[%clk 0:00:30.5]} 25... Nd5 {[%clk 0:00:59.2]} 26. Bg5 {[%clk 0:00:28.6]}
26... Rd7 {[%clk 0:00:56.8]} 27. Rcd1 {[%clk 0:00:28.7]} 27... h6 {[%clk
0:00:56]} 28. Bc1 {[%clk 0:00:28.3]} 28... Ngf4 {[%clk 0:00:53]} 29. Be4 {[%clk
0:00:20.6]} 29... Qe5 {[%clk 0:00:48.7]} 30. Kh1 {[%clk 0:00:15.6]} 30... Rdf7
{[%clk 0:00:48.6]} 31. Rg1 {[%clk 0:00:15.8]} 31... Nh3 {[%clk 0:00:45.3]} 32.
Rg2 {[%clk 0:00:15.3]} 32... Nxf2+ {[%clk 0:00:44.4]} 33. Rxf2 {[%clk
0:00:11.6]} 33... Rxf2 {[%clk 0:00:45.3]} 0-1

[Event "Late-Titled-Tuesday-Blitz-January-30-2024"]
[Site "Chess.com"]
[Date "2024.01.30"]
[Round "7"]
[White "Polish_fighter3000"]
[Black "tptagain"]
[Result "1-0"]
[WhiteElo "3045"]
[BlackElo "2908"]
[TimeControl "180+1"]
[EndTime "15:16:50 PST"]
[Termination "Polish_fighter3000 won on time"]

1. e4 {[%clk 0:03:00.9]} 1... c6 {[%clk 0:03:00]} 2. d4 {[%clk 0:02:59.9]} 2...
d5 {[%clk 0:03:00.5]} 3. e5 {[%clk 0:02:58.5]} 3... Bf5 {[%clk 0:03:00.1]} 4.
Nf3 {[%clk 0:02:58.9]} 4... e6 {[%clk 0:02:59.9]} 5. Be2 {[%clk 0:02:59.5]} 5...
Nd7 {[%clk 0:03:00.1]} 6. O-O {[%clk 0:02:58.1]} 6... a5 {[%clk 0:03:00.1]} 7.
Re1 {[%clk 0:02:52.3]} 7... a4 {[%clk 0:02:58.7]} 8. c3 {[%clk 0:02:52.7]} 8...
h6 {[%clk 0:02:51.9]} 9. Nbd2 {[%clk 0:02:52.4]} 9... Ne7 {[%clk 0:02:50.9]} 10.
Nf1 {[%clk 0:02:53]} 10... c5 {[%clk 0:02:42.4]} 11. Ng3 {[%clk 0:02:51.1]}
11... Bg4 {[%clk 0:02:37.4]} 12. h3 {[%clk 0:02:12]} 12... Bxf3 {[%clk
0:02:36.2]} 13. Bxf3 {[%clk 0:02:12.9]} 13... cxd4 {[%clk 0:02:34.5]} 14. cxd4
{[%clk 0:02:13.8]} 14... Nc6 {[%clk 0:02:33.9]} 15. Be3 {[%clk 0:02:11.1]} 15...
Bb4 {[%clk 0:02:25.9]} 16. Re2 {[%clk 0:02:10.5]} 16... g6 {[%clk 0:02:03.3]}
17. Rc2 {[%clk 0:02:08.1]} 17... Kf8 {[%clk 0:01:50.8]} 18. Ne2 {[%clk
0:01:59.5]} 18... Kg7 {[%clk 0:01:46.2]} 19. Nf4 {[%clk 0:01:59.9]} 19... a3
{[%clk 0:01:29.8]} 20. Rb1 {[%clk 0:01:52.4]} 20... Nb6 {[%clk 0:01:19]} 21.
bxa3 {[%clk 0:01:31.8]} 21... Bxa3 {[%clk 0:01:19.9]} 22. Be2 {[%clk 0:01:25.3]}
22... Nb4 {[%clk 0:01:02.3]} 23. Rc3 {[%clk 0:01:22.9]} 23... Nxa2 {[%clk
0:00:32]} 24. Rcb3 {[%clk 0:01:16.8]} 24... Na4 {[%clk 0:00:30]} 25. Nxe6+
{[%clk 0:00:54.5]} 25... fxe6 {[%clk 0:00:29.9]} 26. Rxb7+ {[%clk 0:00:55]}
26... Be7 {[%clk 0:00:28.7]} 27. Bd3 {[%clk 0:00:54.8]} 27... N2c3 {[%clk
0:00:19]} 28. Qg4 {[%clk 0:00:54.6]} 28... Ne4 {[%clk 0:00:17.7]} 29. Qxe6
{[%clk 0:00:47.8]} 29... Re8 {[%clk 0:00:17.3]} 30. Rd7 {[%clk 0:00:42.2]} 1-0

[Event "Late-Titled-Tuesday-Blitz-January-30-2024"]
[Site "Chess.com"]
[Date "2024.01.30"]
[Round "7"]
[White "IngOscarArdila"]
[Black "kikoveiga"]
[Result "0-1"]
[WhiteElo "2316"]
[BlackElo "2516"]
[TimeControl "180+1"]
[EndTime "15:16:50 PST"]
[Termination "kikoveiga won on time"]

1. d4 {[%clk 0:02:55.2]} 1... Nf6 {[%clk 0:02:58.4]} 2. c4 {[%clk 0:02:55.4]}
2... e6 {[%clk 0:02:57.7]} 3. Nc3 {[%clk 0:02:55.7]} 3... Bb4 {[%clk 0:02:56.1]}
4. Qc2 {[%clk 0:02:55.9]} 4... Nc6 {[%clk 0:02:54]} 5. Nf3 {[%clk 0:02:55.1]}
5... d5 {[%clk 0:02:54.1]} 6. Bg5 {[%clk 0:02:54.2]} 6... h6 {[%clk 0:02:53]} 7.
Bxf6 {[%clk 0:02:54]} 7... Qxf6 {[%clk 0:02:53.9]} 8. e3 {[%clk 0:02:53.5]} 8...
O-O {[%clk 0:02:53]} 9. a3 {[%clk 0:02:53.2]} 9... Bxc3+ {[%clk 0:02:52.7]} 10.
Qxc3 {[%clk 0:02:53.2]} 10... Re8 {[%clk 0:02:42.5]} 11. Be2 {[%clk 0:02:42.9]}
11... dxc4 {[%clk 0:02:34.3]} 12. Bxc4 {[%clk 0:02:39.6]} 12... e5 {[%clk
0:02:35.2]} 13. dxe5 {[%clk 0:02:39.1]} 13... Nxe5 {[%clk 0:02:34.4]} 14. Nxe5
{[%clk 0:02:39.3]} 14... Rxe5 {[%clk 0:02:35]} 15. f4 {[%clk 0:02:21.4]} 15...
Re4 {[%clk 0:02:27.3]} 16. Qxf6 {[%clk 0:01:53.4]} 16... gxf6 {[%clk 0:02:25.3]}
17. Rc1 {[%clk 0:01:49.2]} 17... Rxe3+ {[%clk 0:02:23.7]} 18. Kf2 {[%clk
0:01:49.6]} 18... Re7 {[%clk 0:02:24.1]} 19. Rhe1 {[%clk 0:01:46.1]} 19... Rxe1
{[%clk 0:02:07.6]} 20. Rxe1 {[%clk 0:01:42.8]} 20... Kf8 {[%clk 0:02:08.1]} 21.
Rc1 {[%clk 0:01:25.2]} 21... Bd7 {[%clk 0:02:06.6]} 22. Bd5 {[%clk 0:01:24.2]}
22... c6 {[%clk 0:02:06]} 23. Be4 {[%clk 0:01:23]} 23... Re8 {[%clk 0:02:06]}
24. Bf3 {[%clk 0:01:20.1]} 24... Bf5 {[%clk 0:02:06.1]} 25. Rd1 {[%clk 0:01:18]}
25... Ke7 {[%clk 0:02:05.3]} 26. g4 {[%clk 0:01:15.5]} 26... Be6 {[%clk
0:02:03.7]} 27. f5 {[%clk 0:01:13.6]} 27... Bc8 {[%clk 0:02:01]} 28. Re1+ {[%clk
0:01:04.4]} 28... Kd8 {[%clk 0:02:00.2]} 29. Rd1+ {[%clk 0:00:43.7]} 29... Kc7
{[%clk 0:01:59.9]} 30. h3 {[%clk 0:00:42]} 30... b6 {[%clk 0:01:58.2]} 31. Rc1
{[%clk 0:00:41.1]} 31... Bd7 {[%clk 0:01:58.1]} 32. Kg3 {[%clk 0:00:34]} 32...
Re3 {[%clk 0:01:48.1]} 33. Kf4 {[%clk 0:00:33.9]} 33... Rb3 {[%clk 0:01:48]} 34.
Rc2 {[%clk 0:00:33.6]} 34... c5 {[%clk 0:01:45.6]} 35. h4 {[%clk 0:00:27.7]}
35... Bc6 {[%clk 0:01:45.4]} 36. Bxc6 {[%clk 0:00:19.7]} 36... Kxc6 {[%clk
0:01:46.3]} 37. g5 {[%clk 0:00:13.1]} 37... fxg5+ {[%clk 0:01:45.4]} 38. hxg5
{[%clk 0:00:14]} 38... hxg5+ {[%clk 0:01:44.2]} 39. Kxg5 {[%clk 0:00:14.9]}
39... Rf3 {[%clk 0:01:42]} 40. Kf6 {[%clk 0:00:14.4]} 40... a5 {[%clk
0:01:40.7]} 41. Re2 {[%clk 0:00:12]} 41... c4 {[%clk 0:01:36]} 42. Re7 {[%clk
0:00:11.8]} 42... Rf2 {[%clk 0:01:36.1]} 43. Rxf7 {[%clk 0:00:11]} 43... Rxb2
{[%clk 0:01:36.7]} 44. Rf8 {[%clk 0:00:10.2]} 44... Rf2 {[%clk 0:01:36.8]} 45.
Rc8+ {[%clk 0:00:09.9]} 45... Kb5 {[%clk 0:01:37.1]} 46. Ke6 {[%clk 0:00:09.8]}
46... Ka4 {[%clk 0:01:36.5]} 47. f6 {[%clk 0:00:10.2]} 47... b5 {[%clk
0:01:35.2]} 48. Rb8 {[%clk 0:00:08.1]} 48... b4 {[%clk 0:01:34]} 49. axb4 {[%clk
0:00:07.9]} 49... axb4 {[%clk 0:01:34.9]} 50. f7 {[%clk 0:00:08.1]} 50... c3
{[%clk 0:01:34.7]} 51. f8=Q {[%clk 0:00:07.2]} 51... Rxf8 {[%clk 0:01:35.2]} 52.
Rxf8 {[%clk 0:00:07.9]} 52... c2 {[%clk 0:01:35.4]} 53. Kd5 {[%clk 0:00:07.2]}
53... c1=Q {[%clk 0:01:34.9]} 0-1

[Event "Late-Titled-Tuesday-Blitz-January-30-2024"]
[Site "Chess.com"]
[Date "2024.01.30"]
[Round "7"]
[White "TanitoluwaAps116"]
[Black "OparinGrigoriy"]
[Result "1/2-1/2"]
[WhiteElo "2721"]
[BlackElo "2965"]
[TimeControl "180+1"]
[EndTime "15:16:58 PST"]
[Termination "Game drawn by repetition"]

1. e4 {[%clk 0:03:00.9]} 1... c6 {[%clk 0:02:56.8]} 2. d4 {[%clk 0:03:00.4]}
2... d5 {[%clk 0:02:57.7]} 3. e5 {[%clk 0:03:00.6]} 3... Bf5 {[%clk 0:02:58.2]}
4. Nf3 {[%clk 0:03:00.7]} 4... e6 {[%clk 0:02:58.6]} 5. Be2 {[%clk 0:03:01.2]}
5... Nd7 {[%clk 0:02:59.3]} 6. O-O {[%clk 0:03:01.1]} 6... Ne7 {[%clk 0:03:00]}
7. Nh4 {[%clk 0:02:59.7]} 7... Bg6 {[%clk 0:02:54.6]} 8. c3 {[%clk 0:02:56.8]}
8... c5 {[%clk 0:02:53.9]} 9. Be3 {[%clk 0:02:51.2]} 9... Nf5 {[%clk 0:02:51.8]}
10. Nxf5 {[%clk 0:02:46.4]} 10... Bxf5 {[%clk 0:02:52.7]} 11. Nd2 {[%clk
0:02:45.8]} 11... Qc7 {[%clk 0:02:51.5]} 12. g4 {[%clk 0:02:41.7]} 12... Bg6
{[%clk 0:02:49.3]} 13. f4 {[%clk 0:02:41.7]} 13... f5 {[%clk 0:02:47.7]} 14.
exf6 {[%clk 0:02:37.3]} 14... Nxf6 {[%clk 0:02:48]} 15. Bb5+ {[%clk 0:02:35.2]}
15... Kd8 {[%clk 0:02:41.5]} 16. Nf3 {[%clk 0:01:36.7]} 16... a6 {[%clk
0:02:28.6]} 17. Ng5 {[%clk 0:01:21.9]} 17... Qe7 {[%clk 0:02:24.8]} 18. Qa4
{[%clk 0:00:55.3]} 18... h6 {[%clk 0:02:14.5]} 19. Qa5+ {[%clk 0:00:45]} 19...
Kc8 {[%clk 0:02:14.2]} 20. Nf3 {[%clk 0:00:30.2]} 20... Nxg4 {[%clk 0:02:13.9]}
21. Rae1 {[%clk 0:00:29.7]} 21... Qc7 {[%clk 0:02:09]} 22. Qa4 {[%clk
0:00:25.7]} 22... Kb8 {[%clk 0:02:04.8]} 23. Be8 {[%clk 0:00:13.1]} 23... b5
{[%clk 0:02:04.3]} 24. Bxb5 {[%clk 0:00:13.1]} 24... axb5 {[%clk 0:02:03.9]} 25.
Qxb5+ {[%clk 0:00:14]} 25... Qb7 {[%clk 0:02:03.6]} 26. Qe2 {[%clk 0:00:12.5]}
26... Nxe3 {[%clk 0:02:01.5]} 27. Qxe3 {[%clk 0:00:13.4]} 27... Bf5 {[%clk
0:02:00.3]} 28. dxc5 {[%clk 0:00:13]} 28... Rxa2 {[%clk 0:01:58.8]} 29. b4
{[%clk 0:00:12.8]} 29... Qc7 {[%clk 0:01:53.5]} 30. Ra1 {[%clk 0:00:11.4]} 30...
Rxa1 {[%clk 0:01:45]} 31. Rxa1 {[%clk 0:00:12.3]} 31... Be7 {[%clk 0:01:43.1]}
32. Qe2 {[%clk 0:00:10.5]} 32... Qb7 {[%clk 0:01:12.6]} 33. Ra6 {[%clk
0:00:09.6]} 33... Kc8 {[%clk 0:01:02.9]} 34. Ne5 {[%clk 0:00:05.3]} 34... Bf6
{[%clk 0:00:56.8]} 35. Rb6 {[%clk 0:00:04.8]} 35... Qa7 {[%clk 0:00:54.8]} 36.
Ra6 {[%clk 0:00:02.2]} 36... Qb7 {[%clk 0:00:53]} 37. Rb6 {[%clk 0:00:02.5]}
37... Qa7 {[%clk 0:00:50.4]} 38. Ra6 {[%clk 0:00:03]} 38... Qb7 {[%clk 0:00:47]}
1/2-1/2

[Event "Late-Titled-Tuesday-Blitz-January-30-2024"]
[Site "Chess.com"]
[Date "2024.01.30"]
[Round "7"]
[White "brm72"]
[Black "ural58"]
[Result "1-0"]
[WhiteElo "2694"]
[BlackElo "2469"]
[TimeControl "180+1"]
[EndTime "15:16:58 PST"]
[Termination "brm72 won by resignation"]

1. e4 {[%clk 0:03:00.9]} 1... d5 {[%clk 0:02:59.5]} 2. exd5 {[%clk 0:03:01.2]}
2... Qxd5 {[%clk 0:02:58.9]} 3. Nc3 {[%clk 0:03:01.4]} 3... Qa5 {[%clk
0:02:58.6]} 4. d4 {[%clk 0:03:01.5]} 4... Nf6 {[%clk 0:02:58.7]} 5. Nf3 {[%clk
0:03:01.8]} 5... Nc6 {[%clk 0:02:58.6]} 6. Bb5 {[%clk 0:02:58.9]} 6... Ne4
{[%clk 0:02:57.9]} 7. Rb1 {[%clk 0:02:53]} 7... Nxc3 {[%clk 0:02:54.3]} 8. bxc3
{[%clk 0:02:53.9]} 8... a6 {[%clk 0:02:54.4]} 9. Bxc6+ {[%clk 0:02:30.7]} 9...
bxc6 {[%clk 0:02:54]} 10. O-O {[%clk 0:02:18.4]} 10... Bg4 {[%clk 0:02:53.4]}
11. h3 {[%clk 0:02:13.5]} 11... Bh5 {[%clk 0:02:52.1]} 12. g4 {[%clk 0:02:12.1]}
12... Bg6 {[%clk 0:02:52.2]} 13. Ne5 {[%clk 0:02:11.9]} 13... e6 {[%clk
0:02:46.7]} 14. f4 {[%clk 0:01:49.6]} 14... Bd6 {[%clk 0:02:28.7]} 15. f5 {[%clk
0:01:42.3]} 15... exf5 {[%clk 0:02:19.6]} 16. gxf5 {[%clk 0:01:40.4]} 16... Bxe5
{[%clk 0:02:19.2]} 17. dxe5 {[%clk 0:01:29.7]} 17... Qxc3 {[%clk 0:02:01]} 18.
Rf3 {[%clk 0:01:00.4]} 18... Qc5+ {[%clk 0:01:37.9]} 19. Be3 {[%clk 0:01:00.1]}
19... Qxe5 {[%clk 0:01:37.1]} 20. fxg6 {[%clk 0:00:49.3]} 20... hxg6 {[%clk
0:01:25.3]} 21. Bf4 {[%clk 0:00:47.1]} 21... Qc5+ {[%clk 0:01:24.1]} 22. Kg2
{[%clk 0:00:45.9]} 22... O-O {[%clk 0:00:53.7]} 23. Bxc7 {[%clk 0:00:43.1]}
23... Rfe8 {[%clk 0:00:47.3]} 24. Bg3 {[%clk 0:00:34.2]} 24... Rad8 {[%clk
0:00:46.2]} 25. Rd3 {[%clk 0:00:31.1]} 25... Qg5 {[%clk 0:00:33.5]} 26. Rb7
{[%clk 0:00:28]} 26... c5 {[%clk 0:00:25.2]} 27. Rxd8 {[%clk 0:00:20.4]} 27...
Rxd8 {[%clk 0:00:24.6]} 28. Qxd8+ {[%clk 0:00:20.5]} 28... Qxd8 {[%clk
0:00:23.7]} 29. Rb8 {[%clk 0:00:21.1]} 29... Qxb8 {[%clk 0:00:23.9]} 30. Bxb8
{[%clk 0:00:22]} 30... c4 {[%clk 0:00:23.7]} 31. Kf3 {[%clk 0:00:22.2]} 1-0

[Event "Late-Titled-Tuesday-Blitz-January-30-2024"]
[Site "Chess.com"]
[Date "2024.01.30"]
[Round "7"]
[White "GothamChess"]
[Black "GlavkonVVS"]
[Result "1-0"]
[WhiteElo "2744"]
[BlackElo "2576"]
[TimeControl "180+1"]
[EndTime "15:16:59 PST"]
[Termination "GothamChess won by resignation"]

1. e4 {[%clk 0:03:00.9]} 1... Nf6 {[%clk 0:03:00.5]} 2. e5 {[%clk 0:02:58.8]}
2... Nd5 {[%clk 0:03:00.7]} 3. c4 {[%clk 0:02:59.4]} 3... Nb6 {[%clk 0:03:00.9]}
4. a4 {[%clk 0:02:59.9]} 4... a5 {[%clk 0:03:01]} 5. Ra3 {[%clk 0:02:59]} 5...
d6 {[%clk 0:03:01.4]} 6. exd6 {[%clk 0:02:53.5]} 6... cxd6 {[%clk 0:03:01.7]} 7.
Rg3 {[%clk 0:02:52.1]} 7... g6 {[%clk 0:03:01.9]} 8. h4 {[%clk 0:02:50.4]} 8...
h5 {[%clk 0:03:01.9]} 9. Nc3 {[%clk 0:02:43.8]} 9... Bg7 {[%clk 0:03:02.1]} 10.
Nh3 {[%clk 0:02:41]} 10... Nc6 {[%clk 0:03:02.1]} 11. b3 {[%clk 0:02:32.3]}
11... O-O {[%clk 0:03:00.3]} 12. Nf4 {[%clk 0:02:30.7]} 12... Bg4 {[%clk
0:02:44.9]} 13. Be2 {[%clk 0:02:26]} 13... e5 {[%clk 0:02:37]} 14. Nfd5 {[%clk
0:02:18.8]} 14... Bxe2 {[%clk 0:02:36]} 15. Qxe2 {[%clk 0:02:13.2]} 15... Nd4
{[%clk 0:02:35.9]} 16. Qd1 {[%clk 0:02:05.9]} 16... Nxd5 {[%clk 0:02:27.3]} 17.
Nxd5 {[%clk 0:02:05]} 17... Nf5 {[%clk 0:02:07.1]} 18. Rg5 {[%clk 0:02:02.1]}
18... Re8 {[%clk 0:01:45.6]} 19. g4 {[%clk 0:01:57.1]} 19... hxg4 {[%clk
0:01:43.2]} 20. Qxg4 {[%clk 0:01:50.7]} 20... Nh6 {[%clk 0:01:36.3]} 21. Qg2
{[%clk 0:01:48.1]} 21... Re6 {[%clk 0:01:17.9]} 22. h5 {[%clk 0:01:47.7]} 22...
Kh7 {[%clk 0:01:08.1]} 23. d3 {[%clk 0:01:44.8]} 23... Rc8 {[%clk 0:00:53.2]}
24. hxg6+ {[%clk 0:01:37]} 24... Rxg6 {[%clk 0:00:51.8]} 25. Rxg6 {[%clk
0:01:34.9]} 25... fxg6 {[%clk 0:00:52]} 26. Bxh6 {[%clk 0:00:24]} 26... Bxh6
{[%clk 0:00:51.5]} 27. Qh3 {[%clk 0:00:24.1]} 27... Qf8 {[%clk 0:00:39.9]} 28.
Qd7+ {[%clk 0:00:21.5]} 28... Kh8 {[%clk 0:00:34.6]} 29. Nf6 {[%clk 0:00:14.8]}
1-0

[Event "Late-Titled-Tuesday-Blitz-January-30-2024"]
[Site "Chess.com"]
[Date "2024.01.30"]
[Round "7"]
[White "jinxy2009"]
[Black "Defend1r"]
[Result "0-1"]
[WhiteElo "2236"]
[BlackElo "2534"]
[TimeControl "180+1"]
[EndTime "15:16:59 PST"]
[Termination "Defend1r won by resignation"]

1. e4 {[%clk 0:02:55.7]} 1... c5 {[%clk 0:02:59.4]} 2. Nf3 {[%clk 0:02:55.3]}
2... d6 {[%clk 0:02:59.6]} 3. d4 {[%clk 0:02:55.7]} 3... cxd4 {[%clk 0:03:00.1]}
4. Nxd4 {[%clk 0:02:56.6]} 4... Nf6 {[%clk 0:03:00.7]} 5. Nc3 {[%clk 0:02:55.5]}
5... a6 {[%clk 0:03:00.8]} 6. Be3 {[%clk 0:02:52.6]} 6... e5 {[%clk 0:02:59.9]}
7. Nb3 {[%clk 0:02:49.8]} 7... Be7 {[%clk 0:03:00.2]} 8. f3 {[%clk 0:02:48]}
8... Be6 {[%clk 0:02:59.4]} 9. Qd2 {[%clk 0:02:46.6]} 9... O-O {[%clk
0:02:59.1]} 10. O-O-O {[%clk 0:02:44.8]} 10... Nbd7 {[%clk 0:02:58.9]} 11. g4
{[%clk 0:02:39.4]} 11... b5 {[%clk 0:02:59]} 12. g5 {[%clk 0:02:39.9]} 12... Nh5
{[%clk 0:02:59.2]} 13. Nd5 {[%clk 0:02:38.3]} 13... Bxd5 {[%clk 0:02:59.5]} 14.
exd5 {[%clk 0:02:39.2]} 14... f6 {[%clk 0:02:59.8]} 15. gxf6 {[%clk 0:02:26.1]}
15... Bxf6 {[%clk 0:02:59.1]} 16. Bh3 {[%clk 0:02:26.2]} 16... Nb6 {[%clk
0:02:50.9]} 17. Be6+ {[%clk 0:02:17.9]} 17... Kh8 {[%clk 0:02:50.5]} 18. Qg2
{[%clk 0:02:17.1]} 18... Nc4 {[%clk 0:02:35]} 19. Bd2 {[%clk 0:02:02]} 19... Nf4
{[%clk 0:02:30]} 20. Bxf4 {[%clk 0:01:55.9]} 20... exf4 {[%clk 0:02:29.3]} 21.
c3 {[%clk 0:01:56.3]} 21... b4 {[%clk 0:02:19.7]} 22. Nd4 {[%clk 0:01:47.5]}
22... Qa5 {[%clk 0:02:03.7]} 23. Bf5 {[%clk 0:01:00.2]} 23... bxc3 {[%clk
0:01:49.5]} 24. b3 {[%clk 0:00:44.8]} 24... Qa3+ {[%clk 0:01:23.7]} 25. Kb1
{[%clk 0:00:42.5]} 25... Ne3 {[%clk 0:00:48.9]} 26. Qe2 {[%clk 0:00:30.5]} 26...
Rac8 {[%clk 0:00:37.9]} 27. Rc1 {[%clk 0:00:10.8]} 27... Bxd4 {[%clk 0:00:21.2]}
0-1

[Event "Late-Titled-Tuesday-Blitz-January-30-2024"]
[Site "Chess.com"]
[Date "2024.01.30"]
[Round "7"]
[White "Tomytoteph"]
[Black "Binary010"]
[Result "0-1"]
[WhiteElo "2613"]
[BlackElo "2896"]
[TimeControl "180+1"]
[EndTime "15:17:04 PST"]
[Termination "Binary010 won by resignation"]

1. e4 {[%clk 0:02:57.7]} 1... c5 {[%clk 0:02:58.9]} 2. Nf3 {[%clk 0:02:57.5]}
2... d6 {[%clk 0:02:59.5]} 3. d4 {[%clk 0:02:57.8]} 3... cxd4 {[%clk 0:03:00.4]}
4. Nxd4 {[%clk 0:02:58.6]} 4... Nf6 {[%clk 0:03:01.1]} 5. Nc3 {[%clk 0:02:59.3]}
5... a6 {[%clk 0:03:01.7]} 6. Bc4 {[%clk 0:02:59.7]} 6... e6 {[%clk 0:03:01.8]}
7. Bg5 {[%clk 0:02:59.3]} 7... Be7 {[%clk 0:02:59.5]} 8. Qf3 {[%clk 0:02:59.2]}
8... Qc7 {[%clk 0:02:53.9]} 9. Bb3 {[%clk 0:02:59.1]} 9... Nbd7 {[%clk
0:02:53.4]} 10. O-O-O {[%clk 0:02:58.6]} 10... O-O {[%clk 0:02:39.9]} 11. Kb1
{[%clk 0:02:58.1]} 11... Nc5 {[%clk 0:02:38.4]} 12. Rhe1 {[%clk 0:02:55.3]}
12... b5 {[%clk 0:02:27]} 13. a3 {[%clk 0:02:53.9]} 13... Bb7 {[%clk 0:02:26.5]}
14. h4 {[%clk 0:02:47.4]} 14... Rac8 {[%clk 0:02:14.4]} 15. Bc1 {[%clk
0:02:35.5]} 15... d5 {[%clk 0:02:05.3]} 16. e5 {[%clk 0:02:31.7]} 16... Nfe4
{[%clk 0:02:04.6]} 17. Nxe4 {[%clk 0:02:30.8]} 17... dxe4 {[%clk 0:01:49.6]} 18.
Qg3 {[%clk 0:02:26.8]} 18... Rfd8 {[%clk 0:01:47.7]} 19. f4 {[%clk 0:02:19.9]}
19... Nxb3 {[%clk 0:01:34.2]} 20. cxb3 {[%clk 0:02:03.8]} 20... Bc5 {[%clk
0:01:27.5]} 21. Nc2 {[%clk 0:01:52.2]} 21... Rxd1 {[%clk 0:01:13.2]} 22. Rxd1
{[%clk 0:01:53.1]} 22... e3 {[%clk 0:01:13.1]} 23. Ka2 {[%clk 0:01:35.8]} 23...
e2 {[%clk 0:01:00.6]} 24. Rd2 {[%clk 0:01:30.7]} 24... Bd5 {[%clk 0:00:39.7]}
25. Rxe2 {[%clk 0:01:23.3]} 25... a5 {[%clk 0:00:40.2]} 26. Kb1 {[%clk
0:01:05.8]} 26... a4 {[%clk 0:00:40.1]} 27. b4 {[%clk 0:01:04.5]} 27... Bxb4
{[%clk 0:00:25.3]} 28. axb4 {[%clk 0:01:02.6]} 28... Qc4 {[%clk 0:00:25.4]} 0-1

[Event "Late-Titled-Tuesday-Blitz-January-30-2024"]
[Site "Chess.com"]
[Date "2024.01.30"]
[Round "7"]
[White "Doudou2015"]
[Black "otrov-11"]
[Result "0-1"]
[WhiteElo "2191"]
[BlackElo "2477"]
[TimeControl "180+1"]
[EndTime "15:17:06 PST"]
[Termination "otrov-11 won by resignation"]

1. b3 {[%clk 0:03:00.9]} 1... g6 {[%clk 0:02:58.8]} 2. Bb2 {[%clk 0:03:01.8]}
2... Nf6 {[%clk 0:02:59.2]} 3. Bxf6 {[%clk 0:03:01.4]} 3... exf6 {[%clk
0:02:59.4]} 4. c4 {[%clk 0:03:01.8]} 4... Bg7 {[%clk 0:02:59.7]} 5. Nc3 {[%clk
0:03:02.4]} 5... O-O {[%clk 0:03:00.4]} 6. g3 {[%clk 0:03:02.4]} 6... f5 {[%clk
0:02:57.6]} 7. Bg2 {[%clk 0:03:02.4]} 7... d6 {[%clk 0:02:51.5]} 8. e3 {[%clk
0:03:02.6]} 8... Nd7 {[%clk 0:02:51.5]} 9. Nge2 {[%clk 0:03:02.9]} 9... Nf6
{[%clk 0:02:51.9]} 10. O-O {[%clk 0:03:01.2]} 10... h5 {[%clk 0:02:52.5]} 11. d4
{[%clk 0:02:44.3]} 11... c6 {[%clk 0:02:48.4]} 12. a4 {[%clk 0:02:40.2]} 12...
a5 {[%clk 0:02:47.2]} 13. Rc1 {[%clk 0:02:33.8]} 13... Re8 {[%clk 0:02:39.2]}
14. Qc2 {[%clk 0:02:31.7]} 14... Be6 {[%clk 0:02:25.4]} 15. d5 {[%clk 0:02:30]}
15... cxd5 {[%clk 0:02:23.7]} 16. Nxd5 {[%clk 0:02:26.5]} 16... Nxd5 {[%clk
0:02:23.4]} 17. cxd5 {[%clk 0:02:26.2]} 17... Bd7 {[%clk 0:02:23.6]} 18. Qc7
{[%clk 0:02:21.9]} 18... Qe7 {[%clk 0:02:14.8]} 19. Qxb7 {[%clk 0:02:10.2]}
19... Reb8 {[%clk 0:02:13.2]} 20. Qc7 {[%clk 0:02:08.4]} 20... Rxb3 {[%clk
0:02:10.5]} 21. Rc4 {[%clk 0:01:53.4]} 21... Bf6 {[%clk 0:01:45.7]} 22. Rfc1
{[%clk 0:01:49.3]} 22... Rb4 {[%clk 0:01:37.2]} 23. Nd4 {[%clk 0:01:27.9]} 23...
Bxa4 {[%clk 0:01:17.7]} 24. Rxb4 {[%clk 0:00:58.4]} 24... Qxc7 {[%clk 0:01:05]}
25. Rxc7 {[%clk 0:00:59.3]} 25... axb4 {[%clk 0:01:05.7]} 26. Nc6 {[%clk
0:00:55]} 26... b3 {[%clk 0:01:02.3]} 27. Rb7 {[%clk 0:00:51.1]} 27... b2 {[%clk
0:01:02.8]} 28. Nd4 {[%clk 0:00:47.4]} 28... Bxd4 {[%clk 0:00:58]} 29. exd4
{[%clk 0:00:46.8]} 29... Bb5 {[%clk 0:00:58.5]} 30. Rxb5 {[%clk 0:00:40.4]}
30... Ra1+ {[%clk 0:00:59.2]} 31. Bf1 {[%clk 0:00:37.8]} 31... b1=Q {[%clk
0:01:00.1]} 32. Rxb1 {[%clk 0:00:36.9]} 32... Rxb1 {[%clk 0:01:01]} 33. Kg2
{[%clk 0:00:31.6]} 33... Rd1 {[%clk 0:01:01.7]} 34. Bb5 {[%clk 0:00:30.6]} 34...
Rxd4 {[%clk 0:01:02.6]} 35. Bc6 {[%clk 0:00:31.3]} 35... Kg7 {[%clk 0:01:02]}
36. Kf3 {[%clk 0:00:28.4]} 36... Kf6 {[%clk 0:01:01.7]} 37. Ke3 {[%clk
0:00:25.5]} 37... Rb4 {[%clk 0:01:01.9]} 38. Kf3 {[%clk 0:00:24.6]} 38... Ke5
{[%clk 0:01:01.9]} 39. Be8 {[%clk 0:00:19.8]} 39... Rb7 {[%clk 0:00:58.3]} 40.
Bc6 {[%clk 0:00:18.8]} 40... Rb3+ {[%clk 0:00:57.9]} 41. Ke2 {[%clk 0:00:15.9]}
41... f6 {[%clk 0:00:58]} 42. f4+ {[%clk 0:00:12.6]} 42... Ke4 {[%clk
0:00:57.6]} 43. Kf2 {[%clk 0:00:10.8]} 43... Rb2+ {[%clk 0:00:56.9]} 44. Kg1
{[%clk 0:00:10.6]} 44... g5 {[%clk 0:00:57]} 45. fxg5 {[%clk 0:00:10.2]} 45...
fxg5 {[%clk 0:00:57.9]} 46. h4 {[%clk 0:00:09.3]} 46... gxh4 {[%clk 0:00:57.8]}
47. gxh4 {[%clk 0:00:10.2]} 47... f4 {[%clk 0:00:58.5]} 0-1